Cogmind - Beta 13 @@@ ROGUE MODE // 2024.05.14 @ 19:31:54 Player: mrwizrd Result: Destroyed by L-31 Rogue with Katana Performance ------------- Evolutions (1) 500 Regions Visited (3) 600 Robots Destroyed (28) 140 Value Destroyed (787) 787 Prototype IDs (0) 0 Alien Tech Used (0) 0 Bonus (11) 11 TOTAL SCORE: 2038 Bonus ------- High Alert Combat Kills 11 Cogmind --------- Core Integrity 0/400 Matter 293/300 Energy 100/100 System Corruption 12% Temperature Cool (24) Movement Core (50) Location -9/Storage Parts ------- > --- POWER (1) -------- (None) > --- PROPULSION (3) --- (None) > --- UTILITY (2) ------ (None) > --- WEAPON (3) ------- (None) > --- INVENTORY (5) ---- Light Ion Engine Visual Processing Unit Sensor Array Terrain Scanner Peak State ------------ > --- POWER ------------ Improved Ion Engine > --- PROPULSION ------- Aluminum Leg Aluminum Leg Aluminum Leg > --- UTILITY ---------- Small Storage Unit Improved Targeting Computer > --- WEAPON ----------- Light Assault Rifle Heavy Assault Rifle Mining Claw > --- INVENTORY -------- Ion Engine Light Ion Engine Aluminum Leg Visual Processing Unit Sensor Array Beam Rifle EMP Blaster Mining Claw [Rating: 13] Favorites ----------- Power Light Ion Engine Engine Light Ion Engine Propulsion Aluminum Leg Leg Aluminum Leg Utility Small Storage Unit Storage Small Storage Unit Processor Improved Targeting Computer Protection Light Armor Plating Weapon Assault Rifle Energy Gun EM Pulse Gun Ballistic Gun Assault Rifle Launcher EMP Blaster Slashing Weapon Mining Claw Build | -11 -10 -9 -9 ------- Run | Yrd Mat Mat Sto Slots Evolved 2 | . . 2 . Power . | . . . . Propulsion 1 | . . 1 . Utility . | . . . . Weapon 1 | . . 1 . Parts Attached 32 | 6 3 17 6 Power 7 | 1 2 3 1 Engine 7 | 1 2 3 1 Core . | . . . . Reactor . | . . . . Propulsion 7 | 2 . 3 2 Treads . | . . . . Leg 7 | 2 . 3 2 Wheel . | . . . . Hover . | . . . . Flight . | . . . . Utility 3 | 1 . 2 . Device . | . . . . Storage 1 | 1 . . . Processor 1 | . . 1 . Hackware . | . . . . Protection 1 | . . 1 . Artifact . | . . . . Weapon 15 | 2 1 9 3 Energy Gun 2 | 1 . . 1 Energy Cannon . | . . . . Ballistic Gun 8 | 1 1 6 . Ballistic Cannon . | . . . . Launcher 2 | . . 1 1 Special Weapon . | . . . . Impact Weapon . | . . . . Slashing Weapon 3 | . . 2 1 Piercing Weapon . | . . . . Special Melee Weapon . | . . . . Unidentified Prototypes . | . . . . Parts Lost 13 | . . 1 12 Power 2 | . . . 2 Propulsion 4 | . . . 4 Utility 3 | . . 1 2 Weapon 4 | . . . 4 Highest Loss Streak 12 | . . 1 12 To Critical Strikes . | . . . . Average Slot Usage (%) 92 | . 84 98 87 Engine 11 | . 14 11 8 Leg 30 | . 28 33 26 Storage 11 | . 14 11 11 Processor 3 | . . 1 10 Protection 4 | . . 8 . Energy Gun 2 | . 7 . . Ballistic Gun 20 | . 20 21 19 Slashing Weapon 7 | . . 11 5 Naked Turns . | . . . . Heaviest Build 18 | 12 14 18 18 Greatest Support 30 | 20 20 30 30 Greatest Overweight (x) 2 | 1 . . 2 Average Overweight (x) . | . . . . Largest Inventory Capacity 8 | 8 8 8 8 Average Capacity 7 | 7 8 8 8 Most Carried 8 | 3 7 8 8 Average Carried 6 | 2 3 7 7 Final Capacity 8 | 8 8 8 5 Final Carried 8 | 3 7 8 4 Class Distribution -------------------- 63% | Mutant 28% | Scavenger-Mutant 7% | Gunner Dominant Class ---------------- Mutant | -10/Materials Scavenger-Mutant | -9/Materials Mutant | -9/Storage Resources | -11 -10 -9 -9 ----------- Run | Yrd Mat Mat Sto Matter Collected 759 | 207 155 327 70 Remotely . | . . . . Salvage Created 960 | . 165 440 355 Parts 77 | . 13 34 30 Haulers Intercepted . | . . . . Recyclers Shooed . | . . . . Parts Field Recycled . | . . . . Retrieved Matter . | . . . . Parts Self-Destructed . | . . . . Prevented . | . . . . Kills | -11 -10 -9 -9 ------- Run | Yrd Mat Mat Sto Combat Hostiles Destroyed 19 | . 3 11 5 Melee 3 | . . 2 1 Guns 13 | . 3 9 1 AOE 3 | . . . 3 Classes Destroyed 6 | . 2 3 1 Worker 2 | . 2 . . Builder 5 | . . . 5 Watcher 2 | . . 2 . Swarmer 3 | . . 3 . Grunt 12 | . 3 6 3 Sentry 4 | . . 2 2 Best Kill Streak 6 | . 5 6 4 Combat Bots Only 5 | . 3 5 2 Max Kills in Single Turn 3 | . 1 2 3 Gunslinging 1 | . . 1 . Exploded 1 | . . . 1 Melee 1 | . . 1 1 Uniques/NPCs Destroyed . | . . . . Combat | -11 -10 -9 -9 -------- Run | Yrd Mat Mat Sto Hostile Shots Fired 149 | . 13 63 73 Missed 37 | . 6 14 17 Damage Taken 1675 | . 75 600 1000 Core 410 | . . 147 263 Absorbed by Shields . | . . . . Core Remaining (%) 100 | 100 100 . . Volleys Fired 68 | . 14 33 21 Largest 2 | . 2 2 1 Hottest 60 | . 60 43 56 Shots Fired 115 | . 28 66 21 Gun 101 | . 28 66 7 Cannon . | . . . . Launcher 14 | . . . 14 Special . | . . . . Kinetic 92 | . 24 66 2 Thermal 5 | . . . 5 Explosive . | . . . . Electromagnetic 18 | . 4 . 14 Robot Hit Streak 19 | . 10 8 19 Robot Miss Streak 4 | . 3 4 . Penetration Max . | . . . . Secondary Targets 1 | . . 1 . Max Gunslinging Chain 1 | . . 1 . Shots Hit Robots 86 | . 17 47 22 Core Hits 39 | . 8 17 14 Critical Kills 1 | . 1 . . Critical Parts Destroyed . | . . . . Critical Strikes 3 | . 1 . 2 Burn 2 | . . . 2 Destroy 1 | . 1 . . Melee Attacks 20 | . . 15 5 Impact . | . . . . Slashing 20 | . . 15 5 Piercing . | . . . . Sneak Attacks . | . . . . Combat Hostiles . | . . . . Follow-up Attacks . | . . . . Damage Inflicted 1444 | . 230 645 569 Guns 732 | . 230 444 58 Cannons . | . . . . Explosions 438 | . . . 438 Melee 264 | . . 201 63 Ramming 10 | . . . 10 Kinetic 666 | . 208 444 14 Thermal 100 | . . . 100 Explosive . | . . . . Electromagnetic 404 | . 22 . 382 Impact . | . . . . Slashing 264 | . . 201 63 Piercing . | . . . . Highest Corruption 11 | . . . 11 Average Corruption 2 | . . . 2 Corruption Purged . | . . . . Corruption Blocked . | . . . . Effects 3 | . . . 3 Message Errors 1 | . . . 1 Parts Rejected 1 | . . . 1 Misdirections 1 | . . . 1 Overload Shots . | . . . . Overflow Damage 7 | . . . 7 Projectiles . | . . . . Explosions 7 | . . . 7 Melee . | . . . . Knockbacks . | . . . . Impact . | . . . . Kinetic . | . . . . Secondary . | . . . . Self-Inflicted Damage 91 | . . . 91 Shots 7 | . . . 7 Rammed 3 | . . . 3 Targets Rammed 3 | . . . 3 Kicked . | . . . . Crushed . | . . . . Highest Temperature 54 | . . 2 54 Average Temperature 21 | . . 1 29 Received Heat Transfer 489 | . 42 180 267 Siege Activations . | . . . . Robots Corrupted . | . . . . Combat Hostiles . | . . . . Parts Fried 1 | . . . 1 Impact Corruptions . | . . . . Robots Melted . | . . . . Combat Hostiles . | . . . . Parts Melted 1 | . . . 1 Heat Transferred 309 | . . . 309 Parts Sabotaged . | . . . . Parts Stolen . | . . . . Parts Stripped . | . . . . Power Chain Reactions 3 | . . . 3 Alert | -11 -10 -9 -9 ------- Run | Yrd Mat Mat Sto Peak Influence 445 | . 86 278 445 Initial 117 | . . 35 117 Average 106 | . 24 110 229 Maximum Alert Level 2 | . . 1 2 Low Security (%) 78 | 100 100 75 52 Level 1 17 | . . 24 30 Level 2 3 | . . . 17 Level 3 . | . . . . Level 4 . | . . . . Level 5 . | . . . . High Security . | . . . . Max Security . | . . . . Squads Dispatched 8 | . 1 3 4 Investigation 4 | . 1 2 1 Extermination . | . . . . Reinforcement 3 | . . 1 2 Assault 1 | . . . 1 Garrison . | . . . . Intercept . | . . . . Searches Triggered . | . . . . Construction Impeded 1 | . . . 1 Haulers Reinforced . | . . . . Active Scanning Responses . | . . . . Cargo Convoy Interrupts . | . . . . Stealth | -11 -10 -9 -9 --------- Run | Yrd Mat Mat Sto Distress Signals 3 | . . 1 2 Communications Jammed . | . . . . Distress Signals . | . . . . Times Spotted 40 | . 5 19 16 Peak Tracking Total 6 | . 3 3 6 Tactical Retreats 1 | . . 1 . Traps | -11 -10 -9 -9 ------- Run | Yrd Mat Mat Sto Traps Triggered 1 | . 1 . . Indirectly . | . . . . Trap Hack Attempts . | . . . . Triggered . | . . . . Disarmed . | . . . . Reprogrammed . | . . . . Reused . | . . . . Traps Extracted . | . . . . Installed . | . . . . Triggered . | . . . . Machines | -11 -10 -9 -9 ---------- Run | Yrd Mat Mat Sto Machines Disabled 2 | . . . 2 Max in Single Turn 2 | . . . 2 Garrison Access 1 | . . . 1 Machines Repaired . | . . . . Machines Dismantled . | . . . . Machines Sabotaged . | . . . . Overloaded Fab Kills . | . . . . Hacking | -11 -10 -9 -9 --------- Run | Yrd Mat Mat Sto Machines Accessed 7 | . 2 3 2 Terminals 7 | . 2 3 2 Fabricators . | . . . . Repair Stations . | . . . . Recycling Units . | . . . . Scanalyzers . | . . . . Garrison Access . | . . . . Total Hacks 22 | . 5 11 6 Successful 8 | . 2 4 2 Failed 14 | . 3 7 4 Catastrophic 4 | . . 1 3 Database Lockouts . | . . . . Manual 6 | . . 4 2 Terminals 22 | . 5 11 6 Fabricators . | . . . . Repair Stations . | . . . . Recycling Units . | . . . . Scanalyzers . | . . . . Garrison Access . | . . . . Terminal Hacks 8 | . 2 4 2 Record 3 | . . 1 2 Robot Analysis 1 | . 1 . . Unreport Threat 3 | . 1 2 . Zone Layout 1 | . . 1 . Fabricator Hacks . | . . . . Repair Station Hacks . | . . . . Recycling Unit Hacks . | . . . . Scanalyzer . | . . . . Garrison Access Hacks . | . . . . Unauthorized Hacks . | . . . . Terminals . | . . . . Fabricators . | . . . . Repair Stations . | . . . . Recycling Units . | . . . . Scanalyzers . | . . . . Garrison Access . | . . . . Data Cores Recovered . | . . . . Used . | . . . . Hacking Detections 7 | . 2 3 2 Full Trace Events 4 | . . 2 2 Feedback Events . | . . . . Feedback Blocked . | . . . . Robot Schematics Acquired . | . . . . Robots Built . | . . . . Authchips . | . . . . Time . | . . . . Total Robot Build Rating . | . . . . Part Schematics Acquired . | . . . . Parts Built . | . . . . Authchips . | . . . . Time . | . . . . Total Part Build Rating . | . . . . Parts Repaired . | . . . . Time . | . . . . Parts Recycled . | . . . . Recycled Matter . | . . . . Retrieved Matter . | . . . . Retrieved Components . | . . . . Parts Scanalyzed . | . . . . Part Schematics Acquired . | . . . . Parts Damaged . | . . . . Bothacking | -11 -10 -9 -9 ------------ Run | Yrd Mat Mat Sto Used RIF Installer . | . . . . Robots Hacked . | . . . . Non-combat . | . . . . Combat . | . . . . Robot Hacks Applied . | . . . . Relay Couplers Released 2 | . . . 2 Machine Destruction 2 | . . . 2 Fabnet Peak Effective % . | . . . . Robots Rewired . | . . . . Allies Hacked . | . . . . Hacks Repelled . | . . . . Allies | -11 -10 -9 -9 -------- Run | Yrd Mat Mat Sto Total Allies . | . . . . Largest Group . | . . . . Highest-Rated Group . | . . . . Highest-Rated Ally . | . . . . Total Orders . | . . . . Ally Attacks . | . . . . Total Damage . | . . . . Kills . | . . . . Allies Corrupted . | . . . . Allies Melted . | . . . . Intel | -11 -10 -9 -9 ------- Run | Yrd Mat Mat Sto Robot Analysis Total 1 | . 1 . . Derelict Logs Recovered . | . . . . Drone Launches . | . . . . Drone Recoveries . | . . . . Exploration | -11 -10 -9 -9 ------------- Run | Yrd Mat Mat Sto Turns Passed 1530 | 121 353 743 313 Spaces Moved 912 | 95 249 364 204 Core 31 | 8 . . 23 Treads . | . . . . Legs 881 | 87 249 364 181 Wheels . | . . . . Hover . | . . . . Flight . | . . . . Fastest Speed 50 | 50 120 120 100 Average Speed 119 | 115 120 120 119 Slowest Speed 190 | 120 120 120 190 Overloaded Moves . | . . . . Propulsion Burnouts . | . . . . Robots Hopped . | . . . . Cave-ins Triggered . | . . . . Exploration Rate (%) 21 | 5 32 24 24 Regions Visited 3 Branch Regions 1 Pre-discovered Areas . | . . . . Known Exits Taken . | . . . . Unknown Exits Taken 3 | 1 1 1 . Scrap Searched . | . . . . Spaces Dug . | . . . . Terrain Destroyed 10 | . . . 10 Melee . | . . . . Projectile . | . . . . AOE 10 | . . . 10 Terrain Rammed . | . . . . Walls Destroyed . | . . . . Machines Disabled . | . . . . Actions | -11 -10 -9 -9 --------- Run | Yrd Mat Mat Sto Total 1201 | 103 275 579 244 Wait 127 | . . 127 . Move 909 | 94 248 363 204 Hop . | . . . . Pick Up 20 | 3 6 9 2 Fast Attach 12 | 6 1 5 . Attach 7 | . . 2 5 Detach 1 | . 1 . . Swap 13 | . 2 10 1 Drop 20 | . 3 15 2 Fire 68 | . 14 33 21 Melee 20 | . . 15 5 Ram 4 | . . . 4 Kick . | . . . . Crush . | . . . . Escape Stasis . | . . . . Rewire . | . . . . Trap . | . . . . Miscellaneous . | . . . . Route ------- -11/Scrapyard -10/Materials -9/Materials -9/Storage History --------- Turn | Location | Event 13 | -11/Scrapyard | Discovered new exit (range 15) 122 | -11/Scrapyard | Entered Materials 313 | -10/Materials | Build established: Mutant 326 | -10/Materials | Discovered new exit (range 3) 475 | -10/Materials | Entered another Materials area 475 | -9/Materials | Evolved 2 slots: Propulsion x1, Weapon x1 1036 | -9/Materials | Build established: Scavenger-Mutant 1198 | -9/Materials | Discovered new exit (range 6) 1218 | -9/Materials | Entered Storage 1485 | -9/Storage | Core integrity fell below 50% 1526 | -9/Storage | Core integrity fell below 20% 1528 | -9/Storage | System corruption reached 10% 1531 | -9/Storage | Destroyed by L-31 Rogue with Katana Last Messages --------------- Ion Engine destroyed. Y-45 Defender suffers critical hit (Burn). Hvy. Assault Rifle melted. Y-45 Defender destroyed. G-34 Mercenary suffers critical hit (Burn). M-13 Machinist repairs Y-45 Defender. M-13 Machinist repairs Heat Sink. Critical hit (Burn: +37). Mining Claw destroyed. System corrupted by crushing effect (+4). J AM0R K%#43J/OGM|VI%XW=|IYR2 Imp. Targeting Computer destroyed. Beam Rifle destroyed. System corrupted by crushing effect (+3). System corrupted by crushing effect (+2). [Achievement: System Compromised] Slammed into Y-45 Defender. Slammed into B-36 Bruiser. Destabilizing: System corrupted (+1). Sml. Storage Unit destroyed. Map ----- +----------------------------------------------------+ | | | | | | | | | | | | | | | | | | | | | | | | | | | | | | | | | | | | | ???????????????????????????????????????????? | | ???????????????????????????????????????????? | | ???????????????????????????????????????????? | | ???????????????????????????????????????????? | | ???????????????????????###?????????????????? | | ???????????????????????# ###???????????????? | | ???????????????????????#Yb ###?????????????? | | ??????????????????????###@##T#"????????????? | | ??????????????????????# ggl "????????????? | | ??????????????????????# m%! "????????????? | | ????????????????????" # #####"????????????? | | ????????????????????# + #?????????????????? | | ????????????????????#T# #?????????????????? | | ??????????????????????# ##????????????????? | | ?????????????##########% #????????????????? | | ??????????#### = [ ####?????????????? | | #####?????#! " !| #???????????? | | #?????# !! " =| +???????????? | | ###???# % = # ### ##???????????? | | + "???####[ !%! ######???#????????????? | | #####T#??????# * #????????????????????? | | ????###??????# "#????????????????????? | | ?????????????# ##????????????????????? | | #######??????#+#######?????????????????????? | | "######### ####T######?????????????????? | | %==% / ??????????? | | T = ??????????? | | [ ??????????? | | ###########+############+####???????????? | | ####?????????? ??????????????????????????? | | ??????????????? """????????????????????????? | | ????????????????""""???????????????????????? | +----------------------------------------------------+ Best States ------------- Heat Dissipation 28 Energy Generation 12 Energy Capacity 265 Matter Stores 300 Matter Capacity 300 Sight Range 16 Terrain Scan Density 10 Armor Coverage 150 Evasion (%) 55 Targeting Accuracy 6 Item Schematics ----------------- None Robot Schematics ------------------ None Fabricated ------------ Nothing Alien Tech Used ----------------- None Achievements -------------- System Compromised Challenges ------------ None Game ------ Seed RecoilChargePendant Manual? 0 Play Time 00:46:13 Cumulative 12.6 hours Start 2024.05.14 @ 18:43:42 End 2024.05.14 @ 19:31:54 Sessions 1 Manual Loads 0 Difficulty Rogue Special Mode None Game No. 14 Rogue 14 Adventurer 0 Explorer 0 Win Type - Total 0 Types 0/0/0/0/0/0/0/0/0 Lore% 10 Gallery% 10 Achievement% 8 Wizard Run 0 Options --------- Layout 0 ASCII 0 Keyboard 1 Movement Arrows Keybinds 0 Fullscreen 2 Font 24/X11 Map View 76x50 Zoom Use 0% Tactical HUD 0 Map Filters NONE Filters NONE Steam 1 RUN: 0f32845f-0cc7-4cef-bcf7-1e61157d8197